fUST/lending_fUST_20250330
["ID","MTS","AMOUNT","RATE_DAILY","PERIOD"]
[356852254,1743336637529,-1550.34,0.00019178,2]
[356852256,1743336637539,-500.0,0.00019178,2]
[356852258,1743336637548,-736.27,0.00019178,2]
[356852260,1743336637557,-500.0,0.00019178,2]
[356852262,1743336637566,-552.72,0.00019178,2]
[356852264,1743336637576,-500.0,0.00019178,2]
[356852266,1743336637585,-944.78,0.00019178,2]
[356852268,1743336637595,-500.0,0.00019178,2]
[356852270,1743336637604,-1984.0,0.00019178,2]
[356852272,1743336637614,-4192.73,0.00019178,2]
[356852274,1743336637624,-500.0,0.00019178,2]
[356852276,1743336637633,-500.0,0.00019178,2]
[356852278,1743336637643,-1610.13,0.00019178,2]
[356852280,1743336637652,-4062.87,0.00019178,2]
[356852282,1743336637661,-500.0,0.00019178,2]
[356852284,1743336637671,-527.52,0.00019178,2]
[356852286,1743336637680,-551.98,0.00019178,2]
[356852288,1743336637689,-500.0,0.00019178,2]
[356852290,1743336637698,-5745.56,0.00019178,2]
[356852292,1743336637707,-1105.77,0.00019178,2]
[356852294,1743336637716,-2204.43,0.00019178,2]
[356852296,1743336637725,-500.0,0.00019178,2]
[356852299,1743336637741,-500.0,0.00019178,2]
[356852301,1743336637750,-1201.49,0.00019178,2]
[356852303,1743336637759,-2246.36,0.00019178,2]
[356852305,1743336637768,-500.0,0.00019178,2]
[356852307,1743336637780,-810.23,0.00019178,2]
[356852309,1743336637789,-1362.91,0.00019178,2]
[356852311,1743336637798,-2003.96,0.00019178,2]
[356852313,1743336637808,-929.62,0.00019178,2]
[356852315,1743336637818,-878.79,0.00019178,2]
[356852317,1743336637827,-500.0,0.00019178,2]
[356852319,1743336637837,-500.0,0.00019178,2]
[356852321,1743336637846,-500.0,0.00019178,2]
[356852323,1743336637857,-522.62,0.00019178,2]
[356852325,1743336637866,-3169.96,0.00019178,2]
[356852327,1743336637875,-500.0,0.00019178,2]
[356852329,1743336637885,-500.0,0.00019178,2]
[356852331,1743336637895,-863.37,0.00019178,2]
[356852333,1743336637904,-500.0,0.00019178,2]
[356852335,1743336637914,-299.12110271,0.00019178,2]
[356852337,1743336637923,-784.51,0.00019178,2]
[356852339,1743336637933,-2366.19,0.00019178,2]
[356852341,1743336637942,-678.48,0.00019178,2]
[356852343,1743336637951,-5982.6,0.00019178,2]
[356852345,1743336637960,-500.0,0.00019178,2]
[356852347,1743336637969,-500.0,0.00019178,2]
[356852349,1743336637979,-500.0,0.00019178,2]
[356852351,1743336637989,-500.0,0.00019178,2]
[356852353,1743336637998,-3762.67,0.00019178,2]
[356852355,1743336638007,-412.63596917,0.00019178,2]
[356852357,1743336638016,-500.0,0.00019178,2]
[356852359,1743336638026,-15868.4,0.00019178,2]
[356852361,1743336638035,-710.42,0.00019178,2]
[356852363,1743336638044,-500.0,0.00019178,2]
[356852365,1743336638053,-6137.71,0.00019178,2]
[356852367,1743336638062,-4594.19,0.00019178,2]
[356852369,1743336638072,-500.0,0.00019178,2]
[356852371,1743336638081,-792.46,0.00019178,2]
[356852373,1743336638090,-704.22,0.00019178,2]
[356852375,1743336638100,-500.0,0.00019178,2]
[356852377,1743336638111,-2499.63,0.00019178,2]
[356852380,1743336638120,-1234.8,0.00019178,2]
[356852382,1743336638130,-500.0,0.00019178,2]
[356852384,1743336638139,-5195.9,0.00019178,2]
[356852386,1743336638148,-1838.27,0.00019178,2]
[356852388,1743336638157,-12960.42,0.00019178,2]
[356852390,1743336638166,-500.0,0.00019178,2]
[356852392,1743336638175,-500.0,0.00019178,2]
[356852394,1743336638186,-1000.0,0.00019178,7]
[356852396,1743336638195,-2670.09,0.00019178,2]
[356852398,1743336638205,-500.0,0.00019178,2]
[356852400,1743336638214,-500.0,0.00019178,2]
[356852402,1743336638223,-500.0,0.00019178,2]
[356852404,1743336638233,-2660.8,0.00019178,2]
[356852406,1743336638243,-5869.07,0.00019178,2]
[356852408,1743336638252,-762.09,0.00019178,2]
[356852410,1743336638261,-986.66,0.00019178,2]
[356852412,1743336638270,-500.0,0.00019178,2]
[356852414,1743336638279,-615.49,0.00019178,2]
[356852416,1743336638288,-674.35,0.00019178,2]
[356852418,1743336638297,-2378.15,0.00019178,2]
[356852420,1743336638306,-284.90097032,0.00019178,2]
[356852422,1743336638316,-1800.76,0.00019178,2]
[356852424,1743336638325,-1297.51,0.00019178,2]
[356852426,1743336638335,-500.0,0.00019178,2]
[356852428,1743336638345,-500.0,0.00019178,2]
[356852430,1743336638354,-1268.95,0.00019178,2]
[356852432,1743336638364,-524.33,0.00019178,2]
[356852434,1743336638373,-500.0,0.00019178,2]
[356852436,1743336638384,-500.0,0.00019178,2]
[356852438,1743336638394,-881.02,0.00019178,2]
[356852440,1743336638404,-500.0,0.00019178,2]
[356852442,1743336638413,-15685.99,0.00019178,2]
[356852444,1743336638423,-1200.54,0.00019178,2]
[356852446,1743336638433,-629.01,0.00019178,2]
[356852448,1743336638443,-500.0,0.00019178,2]
[356852450,1743336638453,-500.0,0.00019178,2]
[356852452,1743336638462,-8052.37,0.00019178,2]
[356852454,1743336638471,-946.43,0.00019178,2]
[356852456,1743336638481,-503.91,0.00019178,2]
[356852458,1743336638490,-500.0,0.00019178,2]
[356852460,1743336638500,-573.79,0.00019178,2]
[356852462,1743336638509,-500.0,0.00019178,2]
[356852464,1743336638519,-808.8,0.00019178,2]
[356852466,1743336638528,-500.0,0.00019178,2]
[356852468,1743336638538,-500.0,0.00019178,2]
[356852470,1743336638547,-767.64,0.00019178,2]
[356852472,1743336638557,-804.42,0.00019178,2]
[356852487,1743336638769,-737.11,0.00019178,2]
[356852489,1743336638781,-500.0,0.00019178,2]
[356852491,1743336638790,-8539.25,0.00019178,2]
[356852493,1743336638800,-540.62,0.00019178,2]
[356852495,1743336638811,-3723.83,0.00019178,2]
[356852497,1743336638821,-10362.73995921,0.00019257,2]
[356852499,1743336638830,-1163.13086772,0.00019329,2]
[356852501,1743336638839,-2977.36441742,0.00019362,2]
[356852503,1743336638848,-255.31686626,0.00019451,2]
[356852505,1743336638858,-160.0,0.00019451,2]
[356852507,1743336638867,-500.0,0.00019452,2]
[356852509,1743336638876,-500.0,0.00019452,2]
[356852511,1743336638886,-500.0,0.00019452,2]
[356852514,1743336638896,-500.0,0.00019452,2]
[356852515,1743336638905,-728.46,0.00019452,2]
[356852517,1743336638914,-997.04,0.00019452,2]
[356852519,1743336638924,-500.0,0.00019452,2]
[356852522,1743336638934,-500.0,0.00019452,2]
[356852524,1743336638944,-500.0,0.00019452,2]
[356852526,1743336638954,-971.02,0.00019452,2]
[356852528,1743336638963,-500.0,0.00019452,2]
[356852530,1743336638973,-500.0,0.00019452,2]
[356852532,1743336638982,-500.0,0.00019452,2]
[356852534,1743336638992,-500.0,0.00019452,2]
[356852536,1743336639001,-586.47,0.00019452,2]
[356852538,1743336639010,-651.92,0.00019452,2]
[356852540,1743336639020,-500.0,0.00019452,2]
[356852542,1743336639029,-500.0,0.00019452,2]
[356852544,1743336639039,-500.0,0.00019452,2]
[356852546,1743336639047,-500.0,0.00019452,2]
[356852548,1743336639057,-500.0,0.00019452,2]
[356852550,1743336639066,-500.0,0.00019452,2]
[356852552,1743336639075,-500.0,0.00019452,2]
[356852554,1743336639084,-500.0,0.00019452,2]
[356852556,1743336639094,-500.0,0.00019452,2]
[356852558,1743336639103,-694.25,0.00019452,2]
[356852560,1743336639112,-500.0,0.00019452,2]
[356852562,1743336639122,-500.0,0.00019452,2]
[356852564,1743336639132,-909.26,0.00019452,2]
[356852567,1743336639141,-500.0,0.00019452,2]
[356852569,1743336639150,-508.9,0.00019452,2]
[356852571,1743336639164,-656.04,0.00019452,2]
[356852574,1743336639173,-500.0,0.00019452,2]
[356852576,1743336639183,-500.0,0.00019452,2]
[356852578,1743336639192,-500.0,0.00019452,2]
[356852580,1743336639201,-500.0,0.00019452,2]
[356852582,1743336639211,-500.0,0.00019452,2]
[356852584,1743336639220,-500.0,0.00019452,2]
[356852587,1743336639230,-500.0,0.00019452,2]
[356852589,1743336639239,-500.0,0.00019452,2]
[356852591,1743336639249,-500.0,0.00019452,2]
[356852593,1743336639259,-500.0,0.00019452,2]
[356852594,1743336639268,-500.0,0.00019452,2]
[356852597,1743336639277,-500.0,0.00019452,2]
[356852598,1743336639286,-500.0,0.00019452,2]
[356852600,1743336639296,-770.23,0.00019452,2]
[356852601,1743336639305,-1426.76,0.00019452,2]
[356852603,1743336639314,-500.0,0.00019452,2]
[356852604,1743336639323,-739.19,0.00019452,2]
[356852606,1743336639333,-500.0,0.00019452,2]
[356852607,1743336639342,-500.0,0.00019452,2]
[356852609,1743336639351,-500.0,0.00019452,2]
[356852610,1743336639360,-500.0,0.00019452,2]
[356852612,1743336639370,-500.0,0.00019452,2]
[356852613,1743336639379,-500.0,0.00019452,2]
[356852615,1743336639388,-500.0,0.00019452,2]
[356852616,1743336639398,-500.0,0.00019452,2]
[356852618,1743336639407,-572.06,0.00019452,2]
[356852620,1743336639416,-621.52430095,0.00019452,2]
[356852621,1743336639426,-500.0,0.00019452,2]
[356852623,1743336639435,-500.0,0.00019452,2]
[356852624,1743336639445,-500.0,0.00019452,2]
[356852626,1743336639454,-820.71,0.00019452,2]
[356852628,1743336639464,-500.0,0.00019452,2]
[356852629,1743336639473,-792.51,0.00019452,2]
[356852631,1743336639482,-500.0,0.00019452,2]
[356852633,1743336639491,-500.0,0.00019452,2]
[356852634,1743336639501,-500.0,0.00019452,2]
[356852636,1743336639510,-500.0,0.00019452,2]
[356852638,1743336639519,-643.09,0.00019452,2]
[356852639,1743336639529,-500.0,0.00019452,2]
[356852641,1743336639538,-500.0,0.00019452,2]
[356852642,1743336639548,-500.0,0.00019452,2]
[356852644,1743336639557,-500.0,0.00019452,2]
[356852646,1743336639566,-500.0,0.00019452,2]
[356852647,1743336639575,-500.0,0.00019452,2]
[356852649,1743336639584,-500.0,0.00019452,2]
[356852651,1743336639593,-1373.59,0.00019452,2]
[356852652,1743336639603,-500.0,0.00019452,2]
[356852654,1743336639612,-1089.35,0.00019452,2]
[356852655,1743336639621,-510.53,0.00019452,2]
[356852657,1743336639631,-500.0,0.00019452,2]
[356852659,1743336639640,-500.0,0.00019452,2]
[356852660,1743336639649,-786.5,0.00019452,2]
[356852662,1743336639659,-500.0,0.00019452,2]
[356852664,1743336639668,-500.0,0.00019452,2]
[356852665,1743336639677,-1995.85,0.00019452,2]
[356852667,1743336639687,-500.0,0.00019452,2]
[356852669,1743336639696,-200.0,0.00019452,2]
[356852670,1743336639705,-1928.93,0.00019452,2]
[356852672,1743336639714,-523.74,0.00019452,2]
[356852674,1743336639724,-500.0,0.00019452,2]
[356852675,1743336639736,-523.69,0.00019452,2]
[356852677,1743336639745,-500.0,0.00019452,2]
[356852679,1743336639755,-513.67,0.00019452,2]
[356852680,1743336639764,-1946.49,0.00019452,2]
[356852682,1743336639773,-512.33,0.00019452,2]
[356852684,1743336639785,-500.0,0.00019452,2]
[356852686,1743336639794,-1442.4,0.00019452,2]
[356852687,1743336639804,-500.0,0.00019452,2]
[356852689,1743336639814,-500.0,0.00019452,2]
[356852691,1743336639823,-514.51,0.00019452,2]
[356852692,1743336639833,-500.0,0.00019452,2]
[356852694,1743336639843,-500.0,0.00019452,2]
[356852696,1743336639852,-990.4,0.00019452,2]
[356852697,1743336639862,-942.64,0.00019452,2]
[356852699,1743336639871,-500.0,0.00019452,2]
[356852701,1743336639881,-500.0,0.00019452,2]
[356852702,1743336639891,-500.0,0.00019452,2]
[356852704,1743336639901,-500.0,0.00019452,2]
[356852706,1743336639910,-990.42,0.00019452,2]
[356852707,1743336639919,-500.0,0.00019452,2]
[356852709,1743336639928,-500.0,0.00019452,2]
[356852710,1743336639937,-500.0,0.00019452,2]
[356852712,1743336639946,-500.0,0.00019452,2]
[356852714,1743336639955,-500.0,0.00019452,2]
[356852715,1743336639964,-500.0,0.00019452,2]
[356852717,1743336639973,-500.0,0.00019452,2]
[356852719,1743336639983,-2586.18,0.00019452,2]
[356852720,1743336639992,-1024.32,0.00019452,2]
[356852722,1743336640001,-500.0,0.00019452,2]
[356852724,1743336640010,-1087.6,0.00019452,2]
[356852725,1743336640019,-516.69,0.00019452,2]
[356852727,1743336640029,-500.0,0.00019452,2]
[356852728,1743336640038,-630.83321254,0.00019452,2]
[356852730,1743336640047,-864.19,0.00019452,2]
[356852732,1743336640056,-683.23,0.00019452,2]
[356852734,1743336640065,-903.38,0.00019452,2]
[356852736,1743336640074,-500.0,0.00019452,2]
[356852738,1743336640083,-937.8,0.00019452,2]
[356852740,1743336640092,-500.0,0.00019452,2]
[356852741,1743336640102,-500.0,0.00019452,2]
[356852742,1743336640111,-1131.56,0.00019452,2]
[356852743,1743336640120,-798.99,0.00019452,2]
[356852744,1743336640131,-1481.39,0.00019452,2]
[356852745,1743336640141,-500.0,0.00019452,2]
[356852746,1743336640150,-500.0,0.00019452,2]
[356852747,1743336640160,-500.0,0.00019452,2]
[356852748,1743336640170,-500.0,0.00019452,2]
[356852749,1743336640180,-517.61,0.00019452,2]
[356852750,1743336640189,-500.0,0.00019452,2]
[356852751,1743336640199,-668.21,0.00019452,2]
[356852752,1743336640208,-687.74,0.00019452,2]
[356852753,1743336640217,-899.15,0.00019452,2]
[356852754,1743336640227,-707.97,0.00019452,2]
[356852755,1743336640237,-559.92620956,0.00019452,2]
[356852756,1743336640246,-500.0,0.00019452,2]
[356852758,1743336640256,-1296.96,0.00019452,2]
[356852759,1743336640265,-500.0,0.00019452,2]
[356852760,1743336640275,-500.0,0.00019452,2]
[356852762,1743336640284,-500.0,0.00019452,2]
[356852764,1743336640294,-1345.33,0.00019452,2]
[356852766,1743336640303,-500.0,0.00019452,2]
[356852768,1743336640312,-895.06,0.00019452,2]
[356852770,1743336640322,-500.0,0.00019452,2]
[356852772,1743336640332,-500.0,0.00019452,2]
[356852774,1743336640341,-2501.82,0.00019452,2]
[356852776,1743336640351,-914.71,0.00019452,2]
[356852778,1743336640361,-500.0,0.00019452,2]
[356852780,1743336640370,-500.0,0.00019452,2]
[356852783,1743336640380,-737.75,0.00019452,2]
[356852785,1743336640390,-500.0,0.00019452,2]
[356852787,1743336640400,-500.0,0.00019452,2]
[356852789,1743336640410,-4129.73,0.00019452,2]
[356852791,1743336640420,-500.0,0.00019452,2]
[356852793,1743336640430,-500.0,0.00019452,2]
[356852795,1743336640440,-776.32,0.00019452,2]
[356852797,1743336640450,-4902.77,0.00019452,2]
[356852799,1743336640459,-500.0,0.00019452,2]
[356852801,1743336640468,-500.0,0.00019452,2]
[356852803,1743336640478,-500.0,0.00019452,2]
[356852805,1743336640488,-500.0,0.00019452,2]
[356852807,1743336640497,-1672.32,0.00019452,2]
[356852809,1743336640507,-824.37,0.00019452,2]
[356852811,1743336640516,-643.85,0.00019452,2]
[356852813,1743336640526,-500.0,0.00019452,2]
[356852815,1743336640535,-4151.45,0.00019452,2]
[356852817,1743336640545,-2985.11,0.00019452,2]
[356852819,1743336640555,-500.0,0.00019452,2]
[356852821,1743336640565,-500.0,0.00019452,2]
[356852823,1743336640574,-1413.31,0.00019452,2]
[356852825,1743336640584,-500.0,0.00019452,2]
[356852827,1743336640594,-500.0,0.00019452,2]
[356852829,1743336640603,-500.0,0.00019452,2]
[356852831,1743336640613,-500.0,0.00019452,2]
[356852833,1743336640622,-707.76,0.00019452,2]
[356852835,1743336640633,-500.0,0.00019452,2]
[356852837,1743336640643,-699.65,0.00019452,2]
[356852839,1743336640652,-500.0,0.00019452,2]
[356852841,1743336640662,-500.0,0.00019452,2]
[356852843,1743336640671,-1550.34,0.00019452,2]
[356852845,1743336640681,-284.45720734,0.00019452,2]
[356852847,1743336640690,-736.27,0.00019452,2]
[356852849,1743336640699,-500.0,0.00019452,2]
[356852851,1743336640708,-552.72,0.00019452,2]
[356852853,1743336640717,-500.0,0.00019452,2]
[356852855,1743336640726,-944.78,0.00019452,2]
[356852857,1743336640740,-446.75641094,0.00019452,2]
[356852859,1743336640749,-4192.73,0.00019452,2]
[356852861,1743336640758,-1984.0,0.00019452,2]
[356852863,1743336640767,-500.0,0.00019452,2]
[356852865,1743336640778,-500.0,0.00019452,2]
[356852867,1743336640788,-1610.13,0.00019452,2]
[356852869,1743336640798,-4062.87,0.00019452,2]
[356852871,1743336640810,-500.0,0.00019452,2]
[356852873,1743336640820,-527.52,0.00019452,2]
[356852875,1743336640829,-551.98,0.00019452,2]
[356852877,1743336640840,-500.0,0.00019452,2]
[356852879,1743336640849,-5745.56,0.00019452,2]
[356852882,1743336640859,-1105.77,0.00019452,2]
[356852884,1743336640868,-2204.43,0.00019452,2]
[356852886,1743336640878,-500.0,0.00019452,2]
[356852888,1743336640888,-500.0,0.00019452,2]
[356852890,1743336640898,-1201.49,0.00019452,2]
[356852892,1743336640906,-2246.36,0.00019452,2]
[356852894,1743336640916,-500.0,0.00019452,2]
[356852896,1743336640925,-810.23,0.00019452,2]
[356852898,1743336640935,-1362.91,0.00019452,2]
[356852900,1743336640944,-2003.96,0.00019452,2]
[356852902,1743336640953,-929.62,0.00019452,2]
[356852904,1743336640963,-878.79,0.00019452,2]
[356852906,1743336640972,-500.0,0.00019452,2]
[356852908,1743336640981,-500.0,0.00019452,2]
[356852910,1743336640991,-500.0,0.00019452,2]
[356852912,1743336641000,-522.62,0.00019452,2]
[356852914,1743336641009,-3169.96,0.00019452,2]
[356852916,1743336641018,-500.0,0.00019452,2]
[356852918,1743336641027,-500.0,0.00019452,2]
[356852920,1743336641037,-500.0,0.00019452,2]
[356852922,1743336641046,-863.37,0.00019452,2]
[356852924,1743336641055,-784.51,0.00019452,2]
[356852930,1743336641110,-2366.19,0.00019452,2]
[356852932,1743336641119,-678.48,0.00019452,2]
[356852934,1743336641129,-5982.6,0.00019452,2]
[356852936,1743336641139,-500.0,0.00019452,2]
[356852938,1743336641148,-500.0,0.00019452,2]
[356852940,1743336641158,-500.0,0.00019452,2]
[356852942,1743336641167,-3762.67,0.00019452,2]
[356852945,1743336641176,-500.0,0.00019452,2]
[356852947,1743336641185,-15868.4,0.00019452,2]
[356852949,1743336641195,-710.42,0.00019452,2]
[356852950,1743336641203,-500.0,0.00019452,2]
[356852953,1743336641213,-6137.71,0.00019452,2]
[356852955,1743336641223,-4594.19,0.00019452,2]
[356852957,1743336641232,-792.46,0.00019452,2]
[356852959,1743336641241,-704.22,0.00019452,2]
[356852961,1743336641250,-500.0,0.00019452,2]
[356852963,1743336641260,-2499.63,0.00019452,2]
[356852965,1743336641269,-1234.8,0.00019452,2]
[356852967,1743336641278,-500.0,0.00019452,2]
[356852968,1743336641287,-5195.9,0.00019452,2]
[356852970,1743336641297,-1838.27,0.00019452,2]
[356852973,1743336641307,-12960.42,0.00019452,2]
[356852975,1743336641316,-500.0,0.00019452,2]
[356852977,1743336641326,-500.0,0.00019452,2]
[356852979,1743336641336,-1000.0,0.00019452,7]
[356852981,1743336641346,-2670.09,0.00019452,2]
[356852983,1743336641355,-500.0,0.00019452,2]
[356852985,1743336641364,-167.84328095,0.00019452,2]
[356852987,1743336641374,-500.0,0.00019452,2]
[356852989,1743336641384,-2660.8,0.00019452,2]
[356852991,1743336641393,-5869.07,0.00019452,2]
[356852992,1743336641402,-762.09,0.00019452,2]
[356852995,1743336641412,-986.66,0.00019452,2]
[356852997,1743336641422,-500.0,0.00019452,2]
[356852998,1743336641431,-615.49,0.00019452,2]
[356853000,1743336641440,-674.35,0.00019452,2]
[356853002,1743336641450,-2378.15,0.00019452,2]
[356853004,1743336641460,-1800.76,0.00019452,2]
[356853007,1743336641470,-1297.51,0.00019452,2]
[356853009,1743336641479,-500.0,0.00019452,2]
[356853011,1743336641489,-500.0,0.00019452,2]
[356853013,1743336641498,-1268.95,0.00019452,2]
[356853015,1743336641508,-524.33,0.00019452,2]
[356853017,1743336641517,-500.0,0.00019452,2]
[356853019,1743336641526,-500.0,0.00019452,2]
[356853021,1743336641535,-881.02,0.00019452,2]
[356853023,1743336641545,-15685.99,0.00019452,2]
[356853025,1743336641555,-1200.54,0.00019452,2]
[356853027,1743336641564,-629.01,0.00019452,2]
[356853029,1743336641573,-500.0,0.00019452,2]
[356853031,1743336641583,-500.0,0.00019452,2]
[356853033,1743336641592,-8052.37,0.00019452,2]
[356853035,1743336641601,-946.43,0.00019452,2]
[356853037,1743336641610,-503.91,0.00019452,2]
[356853039,1743336641619,-500.0,0.00019452,2]
[356853041,1743336641628,-573.79,0.00019452,2]
[356853042,1743336641639,-500.0,0.00019452,2]
[356853045,1743336641648,-808.8,0.00019452,2]
[356853046,1743336641657,-500.0,0.00019452,2]
[356853049,1743336641667,-767.64,0.00019452,2]
[356853051,1743336641677,-500.0,0.00019452,2]
[356853053,1743336641687,-804.42,0.00019452,2]
[356853055,1743336641697,-737.11,0.00019452,2]
[356853057,1743336641706,-500.0,0.00019452,2]
[356853059,1743336641715,-8539.25,0.00019452,2]
[356853061,1743336641724,-540.62,0.00019452,2]
[356853062,1743336641735,-3723.83,0.00019452,2]
[356853065,1743336641745,-500.3662102,0.00019473,2]
[356853066,1743336641755,-500.0,0.00019473,2]
[356853068,1743336641765,-518.92905343,0.00019473,2]
[356853070,1743336641775,-500.0,0.00019473,2]
[356853073,1743336641784,-501.69292118,0.00019473,2]
[356853075,1743336641794,-500.95894824,0.00019473,2]
[356853076,1743336641803,-500.0,0.00019473,2]
[356853078,1743336641816,-288.48616928,0.00019473,2]
[356853081,1743336641827,-500.0,0.00019473,2]
[356853083,1743336641837,-503.64523473,0.00019473,2]
[356853085,1743336641846,-500.0,0.00019473,2]
[356853086,1743336641856,-500.0,0.00019473,2]
[356853088,1743336641865,-501.555799,0.00019473,2]
[356853090,1743336641874,-500.0,0.00019473,2]
[356853092,1743336641883,-500.0,0.00019473,2]
[356853095,1743336641893,-501.56752623,0.00019473,2]
[356853096,1743336641903,-613.95069864,0.00019473,2]
[356853098,1743336641913,-500.0,0.00019473,2]
[356853101,1743336641922,-502.86579616,0.00019473,2]
[356853102,1743336641932,-501.64363034,0.00019473,2]
[356853105,1743336641942,-501.19600395,0.00019473,2]
[356853106,1743336641952,-500.53732948,0.00019473,2]
[356853108,1743336641961,-501.79837487,0.00019473,2]
[356853110,1743336641972,-503.4225679,0.00019473,2]
[356853113,1743336641983,-553.89129248,0.00019473,2]
[356853115,1743336641992,-500.0,0.00019473,2]
[356853117,1743336642001,-508.88373591,0.00019473,2]
[356853119,1743336642010,-504.15792154,0.00019473,2]
[356853120,1743336642019,-2891.7148612,0.00019674,2]
[356853122,1743336642028,-250.0,0.000197,2]
[356853124,1743336642037,-160.0,0.00019725,2]
[356853126,1743336642046,-500.0,0.00019726,2]
[356853128,1743336642055,-500.0,0.00019726,2]
[356853130,1743336642065,-500.0,0.00019726,2]
[356853132,1743336642074,-500.0,0.00019726,2]
[356853134,1743336642084,-728.46,0.00019726,2]
[356853136,1743336642094,-997.04,0.00019726,2]
[356853139,1743336642103,-500.0,0.00019726,2]
[356853143,1743336642113,-500.0,0.00019726,2]
[356853146,1743336642123,-500.0,0.00019726,2]
[356853149,1743336642132,-971.02,0.00019726,2]
[356853151,1743336642141,-500.0,0.00019726,2]
[356853153,1743336642151,-500.0,0.00019726,2]
[356853155,1743336642160,-500.0,0.00019726,2]
[356853157,1743336642170,-500.0,0.00019726,2]
[356853159,1743336642179,-586.47,0.00019726,2]
[356853161,1743336642194,-651.92,0.00019726,2]
[356853163,1743336642204,-500.0,0.00019726,2]
[356853165,1743336642214,-300.30295942,0.00019726,2]
[356853167,1743336642224,-500.0,0.00019726,2]
[356853169,1743336642234,-500.0,0.00019726,2]
[356853171,1743336642245,-500.0,0.00019726,2]
[356853173,1743336642255,-500.0,0.00019726,2]
[356853175,1743336642266,-500.0,0.00019726,2]
[356853177,1743336642277,-500.0,0.00019726,2]
[356853179,1743336642287,-500.0,0.00019726,2]
[356853181,1743336642296,-694.25,0.00019726,2]
[356853183,1743336642306,-500.0,0.00019726,2]
[356853185,1743336642316,-500.0,0.00019726,2]
[356853186,1743336642326,-909.26,0.00019726,2]
[356853187,1743336642335,-500.0,0.00019726,2]
[356853188,1743336642343,-508.9,0.00019726,2]
[356853189,1743336642352,-656.04,0.00019726,2]
[356853190,1743336642361,-500.0,0.00019726,2]
[356853191,1743336642371,-500.0,0.00019726,2]
[356853192,1743336642380,-500.0,0.00019726,2]
[356853193,1743336642389,-500.0,0.00019726,2]
[356853194,1743336642398,-500.0,0.00019726,2]
[356853195,1743336642407,-500.0,0.00019726,2]
[356853196,1743336642417,-500.0,0.00019726,2]
[356853197,1743336642426,-500.0,0.00019726,2]
[356853199,1743336642435,-500.0,0.00019726,2]
[356853201,1743336642444,-500.0,0.00019726,2]
[356853204,1743336642453,-500.0,0.00019726,2]
[356853206,1743336642463,-500.0,0.00019726,2]
[356853208,1743336642472,-500.0,0.00019726,2]
[356853210,1743336642481,-770.23,0.00019726,2]
[356853212,1743336642490,-1426.76,0.00019726,2]
[356853214,1743336642499,-500.0,0.00019726,2]
[356853216,1743336642508,-739.19,0.00019726,2]
[356853218,1743336642517,-500.0,0.00019726,2]
[356853220,1743336642526,-500.0,0.00019726,2]
[356853222,1743336642535,-500.0,0.00019726,2]